[Event "FIDE Online Olympiad Final 2020"]
[Site "Online"]
[Date "2020.08.30"]
[Round "1"]
[White "Kosteniuk, Alexandra"]
[Black "Harika, Dronavalli"]
[Result "1/2-1/2"]
[ECO "C07"]
[WhiteElo "2505"]
[BlackElo "2476"]
[Annotator "ChessBase"]
[PlyCount "96"]
[EventDate "2020.08.30"]
[EventType "k.o."]
[SourceTitle "playchess.com"]
[Source "ChessBase"]
[SourceQuality "1"]
[TimeControl "900+5"]

1. e4 {[%emt 0:00:01]} e6 {[%emt 0:00:04]} 2. d4 {[%emt 0:00:02]} d5 {[%emt 0:00:01]} 3. Nd2 {[%emt 0:00:02]} c5 {[%emt 0:00:03]} 4. exd5 {[%emt 0:00:03]} Qxd5 {[%emt 0:00:02]} 5. dxc5 {[%emt 0:00:10]} Nf6 {[%emt 0:00:03]} 6. Ngf3 {[%emt 0:00:07]} Qxc5 {[%emt 0:00:36]} 7. Bd3 {[%emt 0:00:08]} Nbd7 {[%emt 0:00:19]} 8. O-O {[%emt 0:00:08]} Be7 {[%emt 0:00:28]} 9. Re1 {[%emt 0:00:03]} O-O {[%emt 0:00:30]} 10. Ne4 {[%emt 0:00:04]} Qc7 {[%emt 0:00:31]} 11. Nxf6+ {[%emt 0:00:08]} Bxf6 {[%emt 0:00:51]} 12. Ng5 {[%emt 0:03:00]} Bxg5 {[%emt 0:00:42]} 13. Bxg5 {[%emt 0:00:02]} Nc5 {[%emt 0:00:07]} 14. Bf1 {[%emt 0:01:04]} e5 {[%emt 0:01:57]} 15. Qd5 {[%emt 0:01:05]} Ne6 {[%emt 0:00:02]} 16. Bh4 {[%emt 0:00:28]} Qxc2 {[%emt 0:00:27]} 17. Qxe5 {[%emt 0:00:58]} Bd7 {[%emt 0:00:50]} 18. Rac1 {[%emt 0:01:32]} Qg6 {[%emt 0:01:09]} 19. Rc3 {[%emt 0:00:23]} Rfe8 {[%emt 0:01:30]} 20. Qd6 {[%emt 0:03:10]} Nf8 {[%emt 0:01:15]} 21. Rxe8 {[%emt 0:00:41]} Rxe8 {[%emt 0:00:02]} 22. Qxg6 {[%emt 0:00:22]} Nxg6 {[%emt 0:00:01]} 23. Bg5 {[%emt 0:00:01]} Re1 {[%emt 0:01:04]} 24. Rc1 {[%emt 0:00:01]} Rxc1 {[%emt 0:00:02]} 25. Bxc1 {[%emt 0:00:00]} a6 {[%emt 0:00:13]} 26. f3 {[%emt 0:00:05]} Kf8 {[%emt 0:00:03]} 27. Kf2 {[%emt 0:00:06]} Ke7 {[%emt 0:00:01]} 28. b3 {[%emt 0:00:05]} Bb5 {[%emt 0:00:13]} 29. Bxb5 {[%emt 0:00:12]} axb5 {[%emt 0:00:01]} 30. Ke3 {[%emt 0:00:14]} Ke6 {[%emt 0:00:24]} 31. Bb2 {[%emt 0:00:27]} Ne7 {[%emt 0:00:19]} 32. Kd4 {[%emt 0:00:13]} b6 {[%emt 0:00:01]} 33. a4 {[%emt 0:00:50]} Nc6+ {[%emt 0:00:05]} 34. Kd3 {[%emt 0:00:11]} bxa4 {[%emt 0:00:08]} 35. bxa4 {[%emt 0:00:01]} g6 {[%emt 0:00:01]} 36. Kc4 {[%emt 0:00:04]} Kd6 {[%emt 0:00:06]} 37. Kb5 {[%emt 0:00:04]} Kc7 {[%emt 0:00:01]} 38. Bf6 {[%emt 0:00:18]} Na7+ {[%emt 0:00:02]} 39. Ka6 {[%emt 0:00:04]} Nc8 {[%emt 0:00:02]} 40. Kb5 {[%emt 0:00:07]} Nd6+ {[%emt 0:00:04]} 41. Kb4 {[%emt 0:00:04]} Kc6 {[%emt 0:00:01]} 42. g4 {[%emt 0:00:08]} h5 {[%emt 0:00:12]} 43. h3 {[%emt 0:00:02]} Nb7 {[%emt 0:00:04]} 44. Kc4 {[%emt 0:00:06]} Nc5 {[%emt 0:00:02]} 45. Kb4 {[%emt 0:00:17]} Nd3+ {[%emt 0:00:02]} 46. Kc4 {[%emt 0:00:02]} Nc5 {[%emt 0:00:28]} 47. Kb4 {[%emt 0:00:01]} Nd3+ {[%emt 0:00:03]} 48. Kc4 {[%emt 0:00:01]} Nc5 {[%emt 0:01:29]} 1/2-1/2

[Event "FIDE Online Olympiad Final 2020"]
[Site "Online"]
[Date "2020.08.30"]
[Round "1"]
[White "Koneru, Humpy"]
[Black "Lagno, Kateryna"]
[Result "1/2-1/2"]
[ECO "D87"]
[WhiteElo "2442"]
[BlackElo "2358"]
[Annotator "ChessBase"]
[PlyCount "96"]
[EventDate "2020.08.30"]
[EventType "k.o."]
[SourceTitle "playchess.com"]
[Source "ChessBase"]
[SourceQuality "1"]
[TimeControl "900+5"]

1. d4 {[%emt 0:00:01]} Nf6 {[%emt 0:00:02]} 2. c4 {[%emt 0:00:02]} g6 {[%emt 0:00:01]} 3. Nc3 {[%emt 0:00:01]} d5 {[%emt 0:00:02]} 4. cxd5 {[%emt 0:00:02]} Nxd5 {[%emt 0:00:01]} 5. e4 {[%emt 0:00:02]} Nxc3 {[%emt 0:00:01]} 6. bxc3 {[%emt 0:00:01]} Bg7 {[%emt 0:00:01]} 7. Bc4 {[%emt 0:00:02]} c5 {[%emt 0:00:03]} 8. Ne2 {[%emt 0:00:02]} Nc6 {[%emt 0:00:02]} 9. Be3 {[%emt 0:00:03]} O-O {[%emt 0:00:02]} 10. O-O {[%emt 0:00:02]} b6 {[%emt 0:00:03]} 11. dxc5 {[%emt 0:00:06]} Qc7 {[%emt 0:00:04]} 12. Nd4 {[%emt 0:00:02]} Ne5 {[%emt 0:00:05]} 13. Nb5 {[%emt 0:00:04]} Qb8 {[%emt 0:00:04]} 14. Bd5 {[%emt 0:00:04]} Ng4 {[%emt 0:00:19]} 15. g3 {[%emt 0:00:03]} a6 {[%emt 0:00:14]} 16. Bxa8 {[%emt 0:01:31]} Nxe3 {[%emt 0:00:12]} 17. fxe3 {[%emt 0:00:03]} axb5 {[%emt 0:00:12]} 18. Bd5 {[%emt 0:00:04]} Qc7 {[%emt 0:00:32]} 19. cxb6 {[%emt 0:00:18]} Qxb6 {[%emt 0:00:05]} 20. Qe2 {[%emt 0:00:18]} e6 {[%emt 0:00:05]} 21. Bb3 {[%emt 0:00:04]} Bb7 {[%emt 0:00:15]} 22. Bc2 {[%emt 0:01:02]} b4 {[%emt 0:02:23]} 23. Rab1 {[%emt 0:04:48]} Bxc3 {[%emt 0:00:22]} 24. a3 {[%emt 0:00:03]} Rd8 {[%emt 0:02:49]} 25. axb4 {[%emt 0:01:32]} Rd2 {[%emt 0:00:27]} 26. Qf3 {[%emt 0:00:04]} f5 {[%emt 0:00:07]} 27. Rf2 {[%emt 0:00:12]} Rxc2 {[%emt 0:01:05]} 28. Rxc2 {[%emt 0:00:03]} Bxe4 {[%emt 0:00:00]} 29. Qxe4 {[%emt 0:03:14]} fxe4 {[%emt 0:00:14]} 30. Rxc3 {[%emt 0:00:01]} Qb5 {[%emt 0:00:25]} 31. Rb2 {[%emt 0:00:18]} h5 {[%emt 0:00:12]} 32. Kg2 {[%emt 0:02:09]} h4 {[%emt 0:01:12]} 33. gxh4 {[%emt 0:00:44]} Qf5 {[%emt 0:00:39]} 34. h3 {[%emt 0:00:03]} Qf6 {[%emt 0:00:54]} 35. Rc8+ {[%emt 0:00:28]} Kh7 {[%emt 0:00:04]} 36. Rf2 {[%emt 0:00:03]} Qe5 {[%emt 0:01:20]} 37. b5 {[%emt 0:00:03]} g5 {[%emt 0:00:05]} 38. h5 {[%emt 0:00:06]} g4 {[%emt 0:00:49]} 39. hxg4 {[%emt 0:00:07]} Qg7 {[%emt 0:00:12]} 40. Kh3 {[%emt 0:00:06]} Qa7 {[%emt 0:00:02]} 41. Rc3 {[%emt 0:00:06]} Qa1 {[%emt 0:00:07]} 42. Rc7+ {[%emt 0:00:04]} Kh6 {[%emt 0:00:02]} 43. Kg2 {[%emt 0:00:04]} Qd1 {[%emt 0:00:13]} 44. Rcf7 {[%emt 0:00:13]} Qxg4+ {[%emt 0:00:03]} 45. Kf1 {[%emt 0:00:01]} Qd1+ {[%emt 0:00:02]} 46. Kg2 {[%emt 0:00:01]} Qg4+ {[%emt 0:00:01]} 47. Kf1 {[%emt 0:00:04]} Qd1+ {[%emt 0:00:01]} 48. Kg2 {[%emt 0:00:01]} Qg4+ {[%emt 0:00:01]} 1/2-1/2

[Event "FIDE Online Olympiad Final 2020"]
[Site "Online"]
[Date "2020.08.30"]
[Round "2"]
[White "Esipenko, Andrey"]
[Black "Nihal, Sarin"]
[Result "1-0"]
[ECO "A33"]
[WhiteElo "2789"]
[BlackElo "2628"]
[Annotator "ChessBase"]
[PlyCount "49"]
[EventDate "2020.08.30"]
[EventType "k.o."]
[SourceTitle "playchess.com"]
[Source "ChessBase"]
[SourceQuality "1"]
[TimeControl "900+5"]

1. c4 {[%emt 0:00:01]} c5 {[%emt 0:00:04]} 2. Nf3 {[%emt 0:00:04]} Nc6 {[%emt 0:00:01]} 3. Nc3 {[%emt 0:00:03]} Nf6 {[%emt 0:00:01]} 4. d4 {[%emt 0:00:15]} cxd4 {[%emt 0:00:00]} 5. Nxd4 {[%emt 0:00:01]} e6 {[%emt 0:00:03]} 6. g3 {[%emt 0:00:15]} Qb6 {[%emt 0:00:10]} 7. Ndb5 {[%emt 0:00:03]} Ne5 {[%emt 0:00:13]} 8. Bg2 {[%emt 0:00:04]} a6 {[%emt 0:00:25]} 9. Na4 {[%emt 0:00:05]} Qa5+ {[%emt 0:00:40]} 10. Nbc3 {[%emt 0:00:09]} Nxc4 {[%emt 0:01:03]} 11. O-O {[%emt 0:00:03]} d5 {[%emt 0:00:23]} 12. b3 {[%emt 0:00:10]} Nd6 {[%emt 0:02:41]} 13. Qe1 {[%emt 0:00:03]} Qd8 {[%emt 0:01:35]} 14. e4 {[%emt 0:00:05]} Ndxe4 {[%emt 0:02:32]} 15. Nxe4 {[%emt 0:00:07]} dxe4 {[%emt 0:00:03]} 16. Bg5 {[%emt 0:05:32]} Be7 {[%emt 0:01:25]} 17. Rd1 {[%emt 0:00:39]} Nd5 {[%emt 0:00:35]} 18. Bxe7 {[%emt 0:02:10]} Qxe7 {[%emt 0:00:00]} 19. Qxe4 {[%emt 0:00:11]} Bd7 {[%emt 0:03:55]} 20. Rfe1 {[%emt 0:00:48]} Bc6 {[%emt 0:00:23]} 21. Qg4 {[%emt 0:02:21]} f5 {[%emt 0:00:06]} 22. Qe2 {[%emt 0:01:14]} Rd8 {[%emt 0:00:13]} 23. Qxe6 {[%emt 0:01:10]} Qxe6 {[%emt 0:00:02]} 24. Rxe6+ {[%emt 0:00:00]} Kf7 {[%emt 0:00:00]} 25. Re5 {[%emt 0:00:01]} 1-0

[Event "FIDE Online Olympiad Final 2020"]
[Site "Online"]
[Date "2020.08.30"]
[Round "2"]
[White "Harika, Dronavalli"]
[Black "Kosteniuk, Alexandra"]
[Result "1/2-1/2"]
[ECO "D02"]
[WhiteElo "2476"]
[BlackElo "2505"]
[Annotator "ChessBase"]
[PlyCount "71"]
[EventDate "2020.08.30"]
[EventType "k.o."]
[SourceTitle "playchess.com"]
[Source "ChessBase"]
[SourceQuality "1"]
[TimeControl "900+5"]

1. Nf3 {[%emt 0:00:05]} Nf6 {[%emt 0:00:03]} 2. g3 {[%emt 0:00:02]} c5 {[%emt 0:00:09]} 3. Bg2 {[%emt 0:00:11]} Nc6 {[%emt 0:00:05]} 4. O-O {[%emt 0:00:10]} d5 {[%emt 0:00:03]} 5. d4 {[%emt 0:00:13]} cxd4 {[%emt 0:00:02]} 6. Nxd4 {[%emt 0:00:02]} e5 {[%emt 0:00:01]} 7. Nxc6 {[%emt 0:00:02]} bxc6 {[%emt 0:00:01]} 8. c4 {[%emt 0:00:13]} Be6 {[%emt 0:00:01]} 9. Qa4 {[%emt 0:00:20]} Qd7 {[%emt 0:00:01]} 10. Nc3 {[%emt 0:01:01]} Rc8 {[%emt 0:00:05]} 11. Bg5 {[%emt 0:00:31]} d4 {[%emt 0:00:05]} 12. Rfd1 {[%emt 0:00:46]} Bd6 {[%emt 0:00:26]} 13. Bxf6 {[%emt 0:01:08]} gxf6 {[%emt 0:00:00]} 14. e3 {[%emt 0:03:13]} c5 {[%emt 0:00:17]} 15. Qxd7+ {[%emt 0:00:06]} Kxd7 {[%emt 0:00:09]} 16. Nd5 {[%emt 0:00:04]} Bxd5 {[%emt 0:00:17]} 17. Bxd5 {[%emt 0:00:02]} Rb8 {[%emt 0:00:08]} 18. b3 {[%emt 0:00:03]} Ke7 {[%emt 0:00:14]} 19. Kg2 {[%emt 0:00:17]} Rb6 {[%emt 0:00:11]} 20. Rd2 {[%emt 0:00:09]} a5 {[%emt 0:00:13]} 21. Re1 {[%emt 0:00:05]} Kf8 {[%emt 0:02:42]} 22. Rd3 {[%emt 0:00:17]} Kg7 {[%emt 0:00:16]} 23. f4 {[%emt 0:00:03]} a4 {[%emt 0:03:29]} 24. fxe5 {[%emt 0:00:08]} fxe5 {[%emt 0:00:04]} 25. exd4 {[%emt 0:00:04]} cxd4 {[%emt 0:00:23]} 26. c5 {[%emt 0:00:09]} Bxc5 {[%emt 0:00:02]} 27. Rxe5 {[%emt 0:00:04]} f6 {[%emt 0:00:16]} 28. Re2 {[%emt 0:00:11]} Rd8 {[%emt 0:00:32]} 29. Bc4 {[%emt 0:00:05]} a3 {[%emt 0:00:20]} 30. Kf3 {[%emt 0:00:11]} Kg6 {[%emt 0:01:05]} 31. Re4 {[%emt 0:00:11]} Rbd6 {[%emt 0:00:45]} 32. Rg4+ {[%emt 0:00:07]} Kh6 {[%emt 0:00:23]} 33. Rh4+ {[%emt 0:00:11]} Kg6 {[%emt 0:00:04]} 34. Rg4+ {[%emt 0:00:01]} Kh6 {[%emt 0:00:02]} 35. Re4 {[%emt 0:00:19]} Kg6 {[%emt 0:00:02]} 36. Rg4+ {[%emt 0:01:12]} 1/2-1/2

[Event "FIDE Online Olympiad Final 2020"]
[Site "Online"]
[Date "2020.08.30"]
[Round "2"]
[White "Divya, Deshmukh"]
[Black "Shuvalova, Polina"]
[Result "0-1"]
[ECO "C00"]
[WhiteElo "2142"]
[BlackElo "2306"]
[Annotator "ChessBase"]
[PlyCount "50"]
[EventDate "2020.08.30"]
[EventType "k.o."]
[SourceTitle "playchess.com"]
[Source "ChessBase"]
[SourceQuality "1"]
[TimeControl "900+5"]

1. Nf3 {[%emt 0:00:01]} Nf6 {[%emt 0:00:15]} 2. g3 {[%emt 0:00:02]} d5 {[%emt 0:00:16]} 3. Bg2 {[%emt 0:00:02]} e6 {[%emt 0:00:02]} 4. O-O {[%emt 0:00:03]} b5 {[%emt 0:00:41]} 5. d3 {[%emt 0:00:04]} Be7 {[%emt 0:00:19]} 6. Nbd2 {[%emt 0:00:16]} Bb7 {[%emt 0:00:09]} 7. c3 {[%emt 0:00:57]} O-O {[%emt 0:00:17]} 8. Qc2 {[%emt 0:00:13]} c5 {[%emt 0:00:14]} 9. Re1 {[%emt 0:00:49]} Nc6 {[%emt 0:00:18]} 10. e4 {[%emt 0:00:49]} Qc7 {[%emt 0:00:48]} 11. Nf1 {[%emt 0:00:13]} Rfd8 {[%emt 0:00:45]} 12. e5 {[%emt 0:02:17]} Nd7 {[%emt 0:00:02]} 13. Bf4 {[%emt 0:00:00]} a5 {[%emt 0:02:13]} 14. h4 {[%emt 0:00:16]} a4 {[%emt 0:00:03]} 15. a3 {[%emt 0:00:24]} h6 {[%emt 0:01:14]} 16. Ne3 {[%emt 0:03:18]} Nb6 {[%emt 0:01:05]} 17. Ng4 {[%emt 0:03:06]} Bf8 {[%emt 0:00:11]} 18. Qd2 {[%emt 0:00:37]} Kh7 {[%emt 0:01:14]} 19. d4 {[%emt 0:00:30]} Nd7 {[%emt 0:01:31]} 20. Bf1 {[%emt 0:00:28]} c4 {[%emt 0:02:18]} 21. Be2 {[%emt 0:00:23]} Ne7 {[%emt 0:00:18]} 22. Bd1 {[%emt 0:00:35]} Nf5 {[%emt 0:01:00]} 23. Bc2 {[%emt 0:00:06]} Ra6 {[%emt 0:00:09]} 24. Kg2 {[%emt 0:00:50]} Qc8 {[%emt 0:00:18]} 25. Rh1 {[%emt 0:00:12]} Kg8 {[%emt 0:00:03]} 0-1